bitfinex/quotes_SOLUSD_20251231
["timestamp","ask_amount","ask_price","bid_price","bid_amount"]
[1767195735690,107.53964819,125.67,125.64,0.68697532]
[1767195736198,102.575,125.67,125.64,0.68697532]
[1767195736399,14.66,125.69,125.64,12.92386376]
[1767195736579,19.62464819,125.69,125.65,0.68697532]
[1767195736986,20.33859954,125.69,125.65,0.68697532]
[1767195737181,0.81395135,125.69,125.65,0.68697532]
[1767195737386,5.06464819,125.69,125.65,0.68697532]
[1767195737674,0.1,125.69,125.66,0.68697532]
[1767195737879,0.1,125.69,125.67,0.68697532]
[1767195738073,166.8,125.73,125.68,4.96464819]
[1767195738074,181.36,125.73,125.68,4.96464819]
[1767195738310,102.575,125.75,125.7,0.68697532]
[1767195738592,102.575,125.75,125.67,14.56]
[1767195738593,15.27395135,125.76,125.71,5.65162351]
[1767195738893,5.67859954,125.76,125.72,0.71871445]
[1767195739793,4.96464819,125.75,125.72,0.71871445]
[1767195741192,4.96464819,125.74,125.72,0.71871445]
[1767195742397,4.96464819,125.74,125.7,7.95536418]
[1767195742398,4.96464819,125.74,125.71,0.67366808]
[1767195742600,4.96464819,125.73,125.68,12.92086176]
[1767195742904,4.96464819,125.73,125.69,0.67366808]
[1767195743085,4.96464819,125.72,125.69,0.67366808]
[1767195743492,0.67893748,125.73,125.69,0.67366808]
[1767195743680,4.96464819,125.72,125.69,0.67366808]
[1767195744384,0.67893748,125.73,125.69,0.67366808]
[1767195744783,4.96464819,125.72,125.69,0.67366808]
[1767195744975,5.64358567,125.73,125.69,8.62952583]
[1767195745387,14.54,125.75,125.69,7.95585775]
[1767195745582,19.50464819,125.75,125.72,0.67366808]
[1767195745786,14.54,125.75,125.72,0.67366808]
[1767195745984,4.96464819,125.74,125.7,0.67366808]
[1767195746299,4.96464819,125.73,125.71,0.67366808]
[1767195746596,5.64358567,125.74,125.71,0.67366808]
[1767195746985,4.96464819,125.73,125.71,0.67366808]
[1767195748001,4.96464819,125.73,125.7,0.67366808]
[1767195748303,0.67893748,125.71,125.66,7.95759836]
[1767195748602,4.96464819,125.7,125.67,0.67366808]
[1767195748908,4.96464819,125.7,125.67,8.63096867]
[1767195749103,4.96464819,125.71,125.68,0.67366808]
[1767195749683,4.96464819,125.72,125.68,5.63831627]
[1767195749883,4.96464819,125.72,125.69,0.67366808]
[1767195751009,15.21893748,125.73,125.69,0.67366808]
[1767195751217,4.96464819,125.72,125.69,0.67366808]
[1767195753202,4.96464819,125.71,125.69,0.67366808]
[1767195753584,4.96464819,125.74,125.7,4.96464819]
[1767195753784,4.96464819,125.74,125.71,0.67366808]
[1767195753990,15.21893748,125.76,125.71,0.67366808]
[1767195754181,4.96464819,125.75,125.71,0.67366808]
[1767195755092,0.67893748,125.76,125.71,8.62841538]
[1767195755408,4.96464819,125.75,125.72,0.67366808]
[1767195755605,0.67893748,125.76,125.72,0.67366808]
[1767195755807,4.96464819,125.75,125.72,0.67366808]
[1767195756509,15.21893748,125.77,125.72,4.96464819]
[1767195756696,15.21893748,125.77,125.73,0.67366808]
[1767195756891,4.96464819,125.76,125.73,0.67366808]
[1767195757293,15.21893748,125.77,125.73,0.67366808]
[1767195757605,4.96464819,125.77,125.74,0.67366808]
[1767195757986,0.67893748,125.78,125.74,0.67366808]
[1767195758382,4.96464819,125.77,125.74,0.67366808]
[1767195759283,0.67893748,125.78,125.74,0.67366808]
[1767195759483,4.96464819,125.77,125.74,0.67366808]
[1767195760011,0.67893748,125.78,125.74,0.67366808]
[1767195760209,22.89013837,125.79,125.75,0.67366808]
[1767195760210,14.54,125.79,125.75,0.67366808]
[1767195760394,4.96464819,125.78,125.75,0.67366808]
[1767195760594,4.96464819,125.77,125.74,7.9527442]
[1767195760794,4.96464819,125.77,125.74,0.67366808]
[1767195761209,0.67893748,125.78,125.74,0.67366808]
[1767195761410,4.96464819,125.76,125.74,0.67366808]
[1767195762500,0.67893748,125.78,125.74,0.67366808]
[1767195762810,4.96464819,125.76,125.74,0.67366808]
[1767195763312,0.67893748,125.74,125.68,0.67366808]
[1767195763505,4.96464819,125.73,125.69,8.6297505]
[1767195763711,4.96464819,125.72,125.7,0.67366808]
[1767195764014,4.96464819,125.72,125.69,7.95608242]
[1767195764508,4.96464819,125.72,125.69,8.6297505]
[1767195764816,4.96464819,125.74,125.71,0.67366808]
[1767195765392,4.96464819,125.73,125.71,0.67366808]
[1767195765596,4.96464819,125.73,125.69,8.62946126]
[1767195765792,4.96464819,125.72,125.69,8.62946126]
[1767195766203,0.67893748,125.73,125.69,8.62946126]
[1767195766410,4.96464819,125.72,125.69,8.62946126]
[1767195766611,3.16555968,125.72,125.69,8.62946126]
[1767195766811,3.16555968,125.71,125.69,0.67366808]
[1767195767212,3.16555968,125.72,125.69,0.67366808]
[1767195767409,0.67893748,125.73,125.69,0.67366808]
[1767195767718,3.16555968,125.72,125.69,0.67366808]
[1767195768395,3.16555968,125.7,125.66,8.6312233]
[1767195768596,3.16555968,125.7,125.59,6.58658006]
[1767195768597,0.67893748,125.69,125.59,0.67366808]
[1767195768917,3.16555968,125.65,125.61,0.67366808]
[1767195769091,3.16555968,125.63,125.61,0.67366808]
[1767195769295,15.21893748,125.67,125.61,0.67366808]
[1767195769505,3.16555968,125.65,125.61,0.67366808]
[1767195769693,3.16555968,125.66,125.62,0.67366808]
[1767195769896,3.84449716,125.66,125.62,0.67366808]
[1767195770094,3.84449716,125.66,125.62,8.63405157]
[1767195770295,3.16555968,125.65,125.62,0.67366808]
[1767195770490,3.16555968,125.65,125.61,0.67366808]
[1767195770491,3.84449716,125.65,125.61,0.67366808]
[1767195770714,3.84449716,125.65,125.61,8.63473819]
[1767195771405,3.84449716,125.65,125.61,0.67366808]
[1767195771605,3.16555968,125.63,125.6,8.66171797]
[1767195772701,0.70097038,125.64,125.58,0.70013681]
[1767195772702,3.16555968,125.61,125.58,0.70013681]
[1767195772904,3.16555968,125.61,125.57,8.66378686]
[1767195773100,3.16555968,125.61,125.58,7.96299935]
[1767195776423,3.16555968,125.61,125.57,3.86569649]
[1767195776424,3.86653006,125.61,125.57,8.66362906]
[1767195776600,3.16555968,125.6,125.57,8.66362906]
[1767195778201,3.86653006,125.61,125.57,8.66362906]
[1767195780316,3.86653006,125.61,125.57,11.82918874]
[1767195781218,3.86653006,125.61,125.57,8.66362906]
[1767195781422,0.70097038,125.61,125.57,7.96349225]
[1767195781622,0.70097038,125.61,125.56,20.10968917]
[1767195781623,3.16555968,125.58,125.56,0.2]
[1767195781818,0.70097038,125.58,125.54,7.96527916]
[1767195782024,3.16555968,125.57,125.54,7.96527916]
[1767195782208,3.86653006,125.55,125.51,8.66724916]
[1767195782414,0.70097038,125.55,125.51,23.78395779]
[1767195782602,3.86653006,125.56,125.52,0.70013681]
[1767195782801,0.70097038,125.56,125.52,8.66669129]
[1767195783116,3.16555968,125.55,125.52,8.66669129]
[1767195783424,0.70097038,125.56,125.52,8.66669129]
[1767195783618,3.16555968,125.55,125.52,8.66669129]
[1767195784737,3.16555968,125.53,125.5,0.70013681]
[1767195784904,3.16555968,125.52,125.49,7.96852484]
[1767195785111,3.86653006,125.53,125.49,0.70013681]
[1767195785428,3.86653006,125.53,125.5,7.96803956]
[1767195786136,3.16555968,125.52,125.49,8.66860254]
[1767195786515,3.86653006,125.53,125.49,8.66860254]
[1767195787009,14.54,125.58,125.53,0.70013681]
[1767195787215,3.86653006,125.57,125.53,0.70013681]
[1767195787531,3.86653006,125.57,125.52,3.16555968]
[1767195787532,3.16555968,125.58,125.54,3.86569649]
[1767195787828,3.86653006,125.58,125.54,3.86569649]
[1767195788608,3.86653006,125.58,125.54,11.83093076]
[1767195788809,0.70097038,125.57,125.52,3.86569649]
[1767195789009,3.86653006,125.57,125.53,8.66585758]
[1767195789733,3.86653006,125.57,125.54,7.96557774]
[1767195790026,3.16555968,125.57,125.54,8.66571455]
[1767195790505,7.55449136,125.57,125.54,8.66571455]
[1767195792234,8.25546174,125.58,125.54,16.22020591]
[1767195792434,0.70097038,125.58,125.54,16.22020591]
[1767195792631,103.27597038,125.6,125.55,0.70013681]
[1767195792823,7.55449136,125.58,125.55,0.70013681]
[1767195793231,0.70097038,125.62,125.58,0.70013681]
[1767195793438,0.70097038,125.64,125.59,8.25462817]
[1767195793732,0.70097038,125.64,125.61,7.55449136]
[1767195793945,8.25546174,125.65,125.61,8.25462817]
[1767195794921,0.70097038,125.64,125.6,7.96120169]
[1767195795227,0.70097038,125.64,125.61,7.55449136]
[1767195795634,0.70097038,125.64,125.6,8.6613385]
[1767195795836,7.55449136,125.63,125.6,7.96120169]
[1767195796015,8.25546174,125.63,125.6,7.96120169]
[1767195796217,8.25546174,125.63,125.59,8.66231273]
[1767195796441,8.25546174,125.62,125.59,7.9623023]
[1767195796836,8.25546174,125.62,125.57,20.6083484]
[1767195796837,7.55449136,125.6,125.57,0.70013681]
[1767195797379,0.70097038,125.61,125.57,0.70013681]
[1767195797643,8.25546174,125.61,125.57,0.70013681]
[1767195798352,0.70097038,125.61,125.57,16.21820905]
[1767195798512,8.25546174,125.61,125.57,16.21820905]
[1767195798937,8.21876292,125.6,125.57,7.96358088]
[1767195799919,0.66427156,125.6,125.57,7.96358088]
[1767195800439,0.66427156,125.6,125.57,15.51807224]
[1767195800731,7.55449136,125.61,125.57,15.51807224]
[1767195800942,7.55449136,125.61,125.57,16.19717921]
[1767195801149,8.21876292,125.61,125.57,16.19717921]
[1767195802148,0.71762681,125.6,125.57,16.19717921]
[1767195802458,0.71762681,125.6,125.57,15.51807224]
[1767195803945,8.27211817,125.6,125.56,16.20683581]
[1767195804257,0.71762681,125.59,125.55,23.2131857]
[1767195804428,0.71762681,125.59,125.55,16.20767706]
[1767195804769,0.61762681,125.57,125.44,10.47318056]
[1767195804963,7.55449136,125.5,125.46,7.97051082]
[1767195805940,7.55449136,125.51,125.47,8.24301995]
[1767195806247,7.55449136,125.52,125.48,8.24301995]
[1767195806443,8.17211817,125.55,125.5,8.24301995]
[1767195806645,8.17211817,125.55,125.5,7.55449136]
[1767195806825,8.17211817,125.55,125.51,0.68852859]
[1767195807237,0.61762681,125.55,125.51,8.24301995]
[1767195807431,8.17211817,125.55,125.51,8.24301995]
[1767195808354,8.17211817,125.55,125.51,16.21009237]
[1767195808933,8.17211817,125.55,125.51,8.65560101]
[1767195809239,7.55449136,125.54,125.5,7.9678812]
[1767195809426,7.55449136,125.54,125.5,8.65640979]
[1767195809630,7.55449136,125.54,125.5,16.21090115]
[1767195810141,8.17211817,125.55,125.51,7.96745069]
[1767195810533,8.17211817,125.55,125.51,16.21047064]
[1767195813454,7.55449136,125.57,125.53,0.68852859]
[1767195813645,7.55449136,125.57,125.53,8.24301995]
[1767195813846,8.17211817,125.57,125.53,8.24301995]
[1767195814549,14.56,125.58,125.53,15.52049673]
[1767195814757,22.11449136,125.58,125.55,0.68852859]
[1767195816068,22.11449136,125.58,125.53,15.52049673]
[1767195816234,7.55449136,125.56,125.53,7.96600537]
[1767195816764,8.17211817,125.57,125.53,15.52049673]
[1767195818568,0.61762681,125.57,125.53,15.52049673]
[1767195818868,8.17211817,125.57,125.53,16.20902532]
[1767195819536,8.17211817,125.6,125.56,0.68852859]
[1767195819872,7.55449136,125.59,125.55,8.24301995]
[1767195820162,8.17211817,125.59,125.55,8.24301995]
[1767195821162,8.17211817,125.59,125.55,16.20776555]
[1767195821762,0.61762681,125.59,125.55,16.20776555]
[1767195821949,8.17211817,125.59,125.55,16.20776555]
[1767195826746,12.89117214,125.59,125.55,20.92681952]
[1767195827389,12.27354533,125.58,125.55,8.65327419]
[1767195828369,12.89117214,125.58,125.55,8.65327419]
[1767195828869,12.27354533,125.58,125.55,8.65327419]
[1767195829081,12.27354533,125.59,125.55,20.92681952]
[1767195829281,12.89117214,125.59,125.55,8.65327419]
[1767195829455,0.61762681,125.59,125.55,8.65327419]
[1767195829655,12.27354533,125.58,125.55,8.65327419]
[1767195830081,12.27354533,125.58,125.55,0.68852859]
[1767195830578,12.89117214,125.58,125.55,0.68852859]
[1767195830948,12.27354533,125.56,125.53,8.6546586]
[1767195831153,12.27354533,125.55,125.52,7.96658305]
[1767195831463,12.89117214,125.56,125.53,7.96618876]
[1767195831661,0.61762681,125.56,125.53,7.96618876]
[1767195831869,12.89117214,125.58,125.54,20.9577728]
[1767195832052,27.45117214,125.58,125.54,20.9577728]
[1767195832556,12.89117214,125.57,125.54,7.96556594]
[1767195832756,12.89117214,125.57,125.53,20.95824956]
[1767195832961,12.27354533,125.56,125.52,7.96659181]
[1767195833160,12.89117214,125.56,125.52,7.96659181]
[1767195833364,12.89117214,125.56,125.52,8.68525334]
[1767195833673,12.27354533,125.55,125.52,0.71866153]
[1767195834358,12.89117214,125.54,125.51,7.96725544]
[1767195834556,12.89117214,125.54,125.5,8.68678902]
[1767195835160,12.89117214,125.54,125.5,20.96033435]
[1767195835979,0.61762681,125.54,125.5,20.96033435]
[1767195836171,12.89117214,125.54,125.5,20.96033435]
[1767195836672,12.27354533,125.53,125.5,8.68678902]
[1767195836978,0.61762681,125.54,125.5,8.68678902]
[1767195837164,12.89117214,125.54,125.5,20.96033435]
[1767195838679,0.61762681,125.54,125.51,12.27354533]
[1767195838866,0.61762681,125.54,125.51,20.24083137]
[1767195839480,26.83354533,125.55,125.51,20.9594929]
[1767195840079,27.45117214,125.55,125.51,20.9594929]
[1767195840479,12.27354533,125.53,125.5,7.96790067]
[1767195840661,12.27354533,125.53,125.5,0.71866153]
[1767195841258,12.27354533,125.53,125.5,8.686719]
[1767195841681,0.61762681,125.53,125.48,12.27354533]
[1767195841874,12.27354533,125.51,125.49,0.71866153]
[1767195842587,12.27354533,125.52,125.5,0.71866153]
[1767195844581,12.27354533,125.51,125.48,8.68788941]
[1767195844763,12.27354533,125.51,125.49,0.71866153]
[1767195845480,12.27354533,125.52,125.49,8.68723985]
[1767195846058,12.27354533,125.52,125.49,0.71866153]
[1767195848070,12.27354533,125.5,125.48,0.71866153]
[1767195850584,4.9634859,125.5,125.48,0.71866153]
[1767195851285,4.9634859,125.51,125.48,0.71866153]
[1767195851485,4.9634859,125.5,125.48,0.71866153]
[1767195853581,4.9634859,125.49,125.46,7.9704595]
[1767195853786,4.9634859,125.49,125.44,11.28641516]
[1767195853974,4.9634859,125.48,125.46,7.9703631]
[1767195854168,4.9634859,125.48,125.45,7.97106432]
[1767195854769,5.65307088,125.49,125.45,7.97106432]
[1767195854989,5.65307088,125.49,125.46,7.97049211]
[1767195855577,5.65307088,125.49,125.45,8.68996483]
[1767195859384,5.65307088,125.49,125.46,8.67088045]
[1767195859585,5.65307088,125.49,125.46,0.70031425]
[1767195859887,5.65307088,125.49,125.46,8.67096664]
[1767195860090,5.65307088,125.49,125.46,0.70031425]
[1767195861175,0.68958498,125.49,125.46,8.67089501]
[1767195861370,5.65307088,125.49,125.46,8.67089501]
[1767195861583,5.65307088,125.49,125.46,0.70031425]
[1767195862278,5.65307088,125.49,125.46,8.67080724]
[1767195863873,0.68958498,125.49,125.46,8.67080724]
[1767195864194,5.65307088,125.49,125.46,8.67080724]
[1767195865493,5.65307088,125.49,125.46,0.70031425]
[1767195866594,5.65307088,125.49,125.46,8.67080139]
[1767195867495,0.68958498,125.49,125.46,8.67080139]
[1767195867886,4.9634859,125.5,125.46,7.97048714]
[1767195868085,0.65584673,125.56,125.49,0.72117631]
[1767195868396,4.9634859,125.51,125.47,0.72117631]
[1767195868602,0.65584673,125.53,125.48,0.72117631]
[1767195868891,4.9634859,125.52,125.48,0.72117631]
[1767195869081,4.9634859,125.52,125.49,0.72117631]
[1767195869395,5.61933263,125.52,125.49,8.68983578]
[1767195869572,4.9634859,125.51,125.49,0.72117631]
[1767195872199,0.65584673,125.51,125.48,8.6904189]
[1767195872395,5.61933263,125.51,125.48,8.6904189]
[1767195872593,14.56,125.54,125.49,7.9687609]
[1767195872594,0.65584673,125.53,125.49,7.9687609]
[1767195872789,5.61933263,125.52,125.48,13.65370635]
[1767195873706,5.61933263,125.52,125.49,0.72117631]
[1767195876102,5.61933263,125.52,125.49,8.68965627]
[1767195877789,4.9634859,125.51,125.48,7.9692094]
[1767195877987,0.65584673,125.51,125.48,7.9692094]
[1767195878194,5.61933263,125.51,125.48,8.69038571]
[1767195878395,0.65584673,125.51,125.48,8.69038571]
[1767195878595,14.56,125.54,125.49,0.72117631]
[1767195878596,5.61933263,125.52,125.49,0.72117631]
[1767195878794,5.61933263,125.52,125.49,8.68983952]
[1767195887288,0.65584673,125.52,125.49,8.68983952]
[1767195887490,5.61933263,125.52,125.49,8.68983952]
[1767195887689,117.135,125.55,125.49,7.96866321]
[1767195887889,0.65584673,125.54,125.5,0.72117631]
[1767195888107,5.61933263,125.53,125.5,0.72117631]
[1767195888616,117.135,125.55,125.5,0.72117631]
[1767195888810,3.17506172,125.54,125.51,0.72117631]
[1767195889190,103.23084673,125.55,125.51,0.72117631]
[1767195889389,3.17506172,125.54,125.51,0.72117631]
[1767195889608,3.83090845,125.54,125.51,0.72117631]
[1767195890014,102.575,125.55,125.52,0.72117631]
[1767195890190,105.75006172,125.55,125.52,0.72117631]
[1767195890707,106.40590845,125.55,125.52,0.72117631]
[1767195890901,103.23084673,125.55,125.52,0.72117631]
[1767195891102,102.575,125.55,125.53,0.65820589]
[1767195891295,3.83742397,125.57,125.54,0.65820589]
[1767195892091,3.83742397,125.56,125.53,0.65820589]
[1767195893584,3.83742397,125.54,125.51,0.65820589]
[1767195896108,0.66236225,125.54,125.51,0.65820589]
[1767195896293,3.83742397,125.54,125.51,0.65820589]
[1767195899790,3.17506172,125.55,125.52,0.65820589]
[1767195900527,3.83742397,125.56,125.53,0.65820589]
[1767195900820,0.66236225,125.56,125.53,0.65820589]
[1767195901115,3.17506172,125.55,125.52,0.65820589]
[1767195903718,3.17506172,125.55,125.52,8.62496872]
[1767195904018,3.83742397,125.56,125.53,0.65820589]
[1767195904250,9.01250062,125.59,125.53,3.17506172]
[1767195904523,0.66236225,125.58,125.55,0.65820589]
[1767195904700,3.83742397,125.58,125.55,0.65820589]
[1767195904895,0.66236225,125.56,125.52,31.05896922]
[1767195905134,22.52220935,125.6,125.52,31.05896922]
[1767195905135,3.83742397,125.55,125.52,8.62496872]
[1767195905319,3.83742397,125.56,125.53,0.65820589]
[1767195905896,3.83742397,125.56,125.53,8.62420355]
[1767195906226,3.83742397,125.56,125.53,0.65820589]
[1767195906426,3.83742397,125.56,125.53,8.62434376]
[1767195907034,3.17506172,125.56,125.53,7.96613787]
[1767195907334,3.83742397,125.57,125.54,0.65820589]
[1767195909241,0.66236225,125.58,125.55,0.65820589]
[1767195909448,3.83742397,125.58,125.55,0.65820589]
[1767195909632,3.83742397,125.58,125.51,14.56]
[1767195909633,0.66236225,125.55,125.52,0.65820589]
[1767195909834,0.66236225,125.55,125.52,8.62474315]
[1767195910342,3.83742397,125.55,125.52,0.65820589]
[1767195910549,3.83742397,125.56,125.53,0.65820589]
[1767195911114,3.17506172,125.55,125.51,11.80050912]
[1767195911316,3.17506172,125.55,125.51,11.14230323]
[1767195911627,3.83742397,125.55,125.51,7.96721865]
[1767195911833,3.83742397,125.55,125.51,11.14228037]
[1767195912044,3.83742397,125.55,125.52,0.65820589]
[1767195913619,0.66236225,125.55,125.52,0.65820589]
[1767195913819,3.83742397,125.55,125.52,0.65820589]
[1767195914229,3.83742397,125.54,125.5,8.62607734]
[1767195914444,3.83742397,125.54,125.5,11.14293317]
[1767195914651,3.83742397,125.54,125.51,0.65820589]
[1767195915126,0.66236225,125.54,125.51,0.65820589]
[1767195915653,3.17506172,125.54,125.5,7.96787145]
[1767195915958,0.66236225,125.53,125.5,8.62607734]
[1767195916445,3.83742397,125.52,125.48,8.62739514]
[1767195917148,3.83742397,125.52,125.49,0.65820589]
[1767195917442,14.56,125.54,125.47,8.6279597]
[1767195917443,3.83742397,125.5,125.47,8.6279597]
[1767195917747,3.17506172,125.51,125.48,0.65820589]
[1767195917929,3.83742397,125.51,125.48,0.65820589]
[1767195918130,3.83742397,125.51,125.47,11.80302142]
[1767195918738,3.83742397,125.51,125.48,7.9693233]
[1767195918937,3.17506172,125.51,125.48,7.9693233]
[1767195919122,0.65939087,125.5,125.48,7.9693233]
[1767195921229,0.65939087,125.5,125.47,0.65820589]
[1767195921230,3.83445259,125.5,125.47,8.62797274]
[1767195922259,3.17506172,125.51,125.47,11.83071386]
[1767195922432,3.83605409,125.51,125.47,8.65565214]
[1767195923240,3.17506172,125.51,125.48,0.68588529]
[1767195923437,3.83605409,125.52,125.48,0.68588529]
[1767195923638,3.17506172,125.51,125.48,0.68588529]
[1767195924343,3.83605409,125.52,125.49,0.68588529]
[1767195924543,0.66099237,125.52,125.49,0.68588529]
[1767195924744,3.83605409,125.52,125.49,0.68588529]
[1767195925136,3.17506172,125.51,125.49,0.68588529]
[1767195925450,3.17506172,125.52,125.49,0.68588529]
[1767195925639,3.83605409,125.52,125.49,0.68588529]
[1767195925839,0.66099237,125.52,125.49,0.68588529]
[1767195926039,3.83605409,125.52,125.49,0.68588529]
[1767195927543,103.23599237,125.54,125.51,0.68588529]
[1767195927744,3.17506172,125.54,125.51,0.68588529]
[1767195927950,3.17506172,125.55,125.51,3.17506172]
[1767195928254,3.17506172,125.55,125.52,0.68588529]
[1767195929759,3.17506172,125.55,125.52,8.6527339]
[1767195930060,3.83605409,125.55,125.52,8.6527339]
[1767195930648,3.17506172,125.56,125.52,7.96684861]
[1767195930955,3.17506172,125.56,125.53,0.68588529]
[1767195931651,18.39605409,125.57,125.53,3.17506172]
[1767195931950,102.575,125.59,125.55,0.68588529]
[1767195931951,3.17506172,125.58,125.55,0.68588529]
[1767195932542,3.17506172,125.57,125.55,0.68588529]
[1767195933053,3.17506172,125.57,125.54,0.68588529]
[1767195934460,3.83605409,125.57,125.54,0.68588529]
[1767195934756,0.66099237,125.56,125.53,7.96590251]
[1767195934957,0.66099237,125.56,125.53,8.6517878]
[1767195935755,3.17506172,125.56,125.52,7.96653232]
[1767195935961,3.83605409,125.55,125.52,0.68588529]
[1767195937661,3.83605409,125.55,125.52,8.65262706]
[1767195938264,0.66099237,125.55,125.52,8.65262706]
[1767195939262,3.17506172,125.56,125.53,0.68588529]
[1767195939861,3.83605409,125.56,125.53,0.68588529]
[1767195940244,0.66099237,125.56,125.53,0.68588529]
[1767195942158,3.83605409,125.56,125.53,0.68588529]
[1767195942554,0.66099237,125.54,125.51,8.65311801]
[1767195942845,0.66099237,125.55,125.52,8.65272015]
[1767195943041,0.66099237,125.57,125.53,8.65198518]
[1767195943253,3.17506172,125.57,125.53,8.65198518]
[1767195943548,3.83605409,125.57,125.53,8.65198518]
[1767195943748,106.41105409,125.58,125.55,0.68588529]
[1767195943974,106.41105409,125.58,125.54,0.68588529]
[1767195944172,0.66099237,125.57,125.54,0.68588529]
[1767195944663,3.83605409,125.57,125.54,0.68588529]
[1767195945671,0.66099237,125.57,125.54,0.68588529]
[1767195945867,3.83605409,125.57,125.54,8.65139186]
[1767195946472,3.83605409,125.57,125.54,0.68588529]
[1767195947649,3.83605409,125.57,125.54,8.65147251]
[1767195948171,3.83605409,125.57,125.54,0.68588529]
[1767195948466,3.83605409,125.56,125.53,0.68588529]
[1767195949666,102.575,125.58,125.53,7.96593619]
[1767195949859,3.83605409,125.57,125.54,0.68588529]
[1767195950055,0.66099237,125.57,125.54,11.82646592]
[1767195950369,117.135,125.58,125.55,3.86094701]
[1767195950550,117.79599237,125.58,125.55,5.64241565]
[1767195950947,5.61752273,125.6,125.56,4.95653036]
[1767195951266,5.61752273,125.6,125.56,5.61669938]
[1767195951470,0.68575404,125.59,125.56,5.61669938]
[1767195952162,0.68575404,125.59,125.56,0.66016902]
[1767195952362,5.6422844,125.6,125.56,13.58087231]
[1767195952563,0.68575404,125.6,125.57,0.66016902]
[1767195952870,0.68575404,125.6,125.57,5.61669938]
[1767195954084,0.68575404,125.6,125.57,8.62362576]
[1767195955258,108.2172844,125.61,125.58,0.66016902]
[1767195955464,5.6422844,125.61,125.58,0.66016902]
[1767195956185,0.68575404,125.61,125.58,8.62298426]
[1767195957182,5.6422844,125.61,125.58,8.62298426]
[1767195958192,4.95653036,125.61,125.59,0.66016902]
[1767195959089,5.6422844,125.61,125.58,0.66016902]
[1767195960791,4.95653036,125.61,125.58,8.62320137]
[1767195961297,4.95653036,125.61,125.58,0.66016902]
[1767195961465,5.6422844,125.61,125.58,0.66016902]
[1767195961865,0.68575404,125.61,125.58,0.66016902]
[1767195962179,5.6422844,125.61,125.58,0.66016902]
[1767195962892,4.95653036,125.6,125.58,0.66016902]
[1767195963087,5.6422844,125.6,125.57,0.66016902]
[1767195964666,102.575,125.64,125.6,0.66016902]
[1767195964866,4.95653036,125.64,125.61,0.66016902]
[1767195965169,5.7422844,125.65,125.61,0.66016902]
[1767195966605,5.7422844,125.65,125.62,0.66016902]
[1767195966813,4.95653036,125.64,125.62,0.66016902]
[1767195967009,5.6422844,125.64,125.61,0.66016902]
[1767195967696,4.95653036,125.64,125.61,0.66016902]
[1767195968278,5.6422844,125.64,125.61,0.66016902]
[1767195968780,0.1,125.65,125.61,0.66016902]
[1767195968987,5.7422844,125.65,125.61,0.66016902]
[1767195969295,5.7422844,125.65,125.62,0.66016902]
[1767195971076,0.1,125.65,125.63,0.66016902]
[1767195971420,19.61653036,125.68,125.65,0.66016902]
[1767195971588,0.1,125.68,125.65,0.66016902]
[1767195972500,5.05653036,125.68,125.65,0.66016902]
[1767195972889,5.7422844,125.68,125.64,0.66016902]
[1767195973094,5.7422844,125.68,125.64,8.61933688]
[1767195973289,5.7422844,125.68,125.64,7.95916786]
[1767195973601,0.78575404,125.68,125.65,0.66016902]
[1767195973826,5.7422844,125.68,125.65,0.66016902]
[1767195974518,0.78575404,125.68,125.65,0.66016902]
[1767195974692,5.7422844,125.68,125.65,0.66016902]
[1767195975921,5.05653036,125.68,125.65,0.66016902]
[1767195976424,0.1,125.68,125.66,0.66016902]
[1767195976725,0.1,125.68,125.67,0.66016902]
[1767195977597,0.1,125.69,125.68,0.66016902]
[1767195979311,0.1,125.69,125.68,8.61688448]
[1767195979501,0.1,125.7,125.68,8.61688448]
[1767195979905,0.1,125.7,125.68,8.61165836]
[1767195981117,0.1,125.7,125.68,0.6549429]
[1767195981417,0.1,125.7,125.68,8.61157405]
[1767195981997,0.1,125.7,125.69,0.66339883]
[1767195983825,0.1,125.7,125.68,7.95663115]
[1767195983826,0.71020781,125.69,125.66,7.95756292]
[1767195984003,5.66673817,125.69,125.66,7.95756292]
[1767195984211,0.71020781,125.69,125.66,7.95756292]
[1767195984413,5.66673817,125.69,125.66,7.95756292]
[1767195985199,0.71020781,125.69,125.67,7.95729511]
[1767195985404,5.05653036,125.7,125.67,7.95729511]
[1767195985405,0.1,125.7,125.68,7.95636506]
[1767195987124,0.1,125.7,125.68,13.51320825]
[1767195988131,0.1,125.7,125.69,0.60031283]
[1767195988439,0.1,125.73,125.69,0.60031283]
[1767195988440,0.81020781,125.73,125.69,13.31292561]
[1767195988930,0.71020781,125.72,125.69,13.31292561]
[1767195990409,5.05653036,125.73,125.69,13.31292561]
[1767195990600,5.76673817,125.73,125.69,8.35639525]
[1767195990802,0.81020781,125.73,125.69,12.91261278]
[1767195991003,0.81020781,125.73,125.69,13.31292561]
[1767195991211,5.76673817,125.73,125.69,13.31292561]
[1767195991719,0.1,125.73,125.71,0.40031283]
[1767195992099,0.1,125.74,125.71,4.95653036]
[1767195992400,0.1,125.74,125.72,0.30031283]
[1767195993212,0.1,125.74,125.71,7.95480673]
[1767195993417,5.76673817,125.74,125.71,8.25511956]
[1767195994502,0.81020781,125.74,125.71,8.25511956]